[Event "*** SCC Grand Prix: Titled Tuesday Blitz"]
[Site "Chess.com"]
[Date "2020.07.07"]
[Round "4"]
[White "viktorskliarov"]
[Black "GM4life"]
[Result "0-1"]
[WhiteElo "2513"]
[BlackElo "2362"]
[TimeControl "180+1"]
[EndTime "10:41:28 PDT"]
[Termination "GM4life won on time"]

1. e4 {[%clk 0:02:59.3]} 1... c5 {[%clk 0:02:59.3]} 2. Nf3 {[%clk 0:02:58.2]}
2... d6 {[%clk 0:02:58.3]} 3. d4 {[%clk 0:02:58.1]} 3... cxd4 {[%clk 0:02:59.2]}
4. Qxd4 {[%clk 0:02:58.4]} 4... Nc6 {[%clk 0:02:57.1]} 5. Bb5 {[%clk 0:02:53.9]}
5... Bd7 {[%clk 0:02:54.8]} 6. Bxc6 {[%clk 0:02:54.1]} 6... Bxc6 {[%clk
0:02:51.7]} 7. Nc3 {[%clk 0:02:53]} 7... e5 {[%clk 0:02:51.2]} 8. Qd3 {[%clk
0:02:49.7]} 8... h6 {[%clk 0:02:50.6]} 9. O-O {[%clk 0:02:46.1]} 9... Nf6 {[%clk
0:02:50.1]} 10. b4 {[%clk 0:02:45.8]} 10... a6 {[%clk 0:02:47]} 11. a4 {[%clk
0:02:45.1]} 11... Be7 {[%clk 0:02:46.5]} 12. Ba3 {[%clk 0:02:44.4]} 12... b5
{[%clk 0:02:17]} 13. a5 {[%clk 0:02:26.8]} 13... O-O {[%clk 0:02:15.4]} 14. Rad1
{[%clk 0:02:26.8]} 14... Qc7 {[%clk 0:02:13.1]} 15. Nh4 {[%clk 0:02:16]} 15...
Rfd8 {[%clk 0:02:06.7]} 16. Nf5 {[%clk 0:02:13.7]} 16... Bf8 {[%clk 0:02:05.4]}
17. Ne3 {[%clk 0:02:13.4]} 17... Qb7 {[%clk 0:01:51.8]} 18. f3 {[%clk
0:01:54.4]} 18... Rd7 {[%clk 0:01:47.2]} 19. Rf2 {[%clk 0:01:49.6]} 19... Rad8
{[%clk 0:01:47.5]} 20. Ned5 {[%clk 0:01:23.9]} 20... Bxd5 {[%clk 0:01:38.8]} 21.
Nxd5 {[%clk 0:01:21.1]} 21... Nxd5 {[%clk 0:01:37.9]} 22. Qxd5 {[%clk
0:01:20.3]} 22... Qxd5 {[%clk 0:01:38.2]} 23. Rxd5 {[%clk 0:01:20.1]} 23... Rc8
{[%clk 0:01:38.5]} 24. Bb2 {[%clk 0:01:09.2]} 24... Rdc7 {[%clk 0:01:38.8]} 25.
c3 {[%clk 0:01:05.3]} 25... Be7 {[%clk 0:01:33.5]} 26. Kf1 {[%clk 0:01:04.6]}
26... Rc6 {[%clk 0:01:31.7]} 27. Ke2 {[%clk 0:01:03.9]} 27... Kf8 {[%clk
0:01:29.3]} 28. Kd3 {[%clk 0:01:03.5]} 28... Bg5 {[%clk 0:01:27.6]} 29. g3
{[%clk 0:00:57.1]} 29... Ke7 {[%clk 0:01:24]} 30. h4 {[%clk 0:00:47.7]} 30...
Bf6 {[%clk 0:01:21.8]} 31. Rc2 {[%clk 0:00:48.1]} 31... Ke6 {[%clk 0:01:21]} 32.
Bc1 {[%clk 0:00:47.4]} 32... Rc4 {[%clk 0:01:14]} 33. Be3 {[%clk 0:00:45.6]}
33... Be7 {[%clk 0:01:11.7]} 34. Bb6 {[%clk 0:00:29.9]} 34... f5 {[%clk
0:01:10]} 35. Be3 {[%clk 0:00:23.9]} 35... Rf8 {[%clk 0:01:00]} 36. Rf2 {[%clk
0:00:20]} 36... Rfc8 {[%clk 0:00:50.6]} 37. Bd2 {[%clk 0:00:19.6]} 37... fxe4+
{[%clk 0:00:47.6]} 38. fxe4 {[%clk 0:00:19.4]} 38... Rxe4 {[%clk 0:00:45.2]} 39.
Kxe4 {[%clk 0:00:18.8]} 39... Rc4+ {[%clk 0:00:44.4]} 40. Kd3 {[%clk 0:00:11.9]}
40... Kxd5 {[%clk 0:00:43.7]} 41. Rf7 {[%clk 0:00:12.3]} 41... Bf6 {[%clk
0:00:42.9]} 42. Bxh6 {[%clk 0:00:12.3]} 42... e4+ {[%clk 0:00:42.4]} 43. Ke2
{[%clk 0:00:12.2]} 43... Rxc3 {[%clk 0:00:41.5]} 44. Bxg7 {[%clk 0:00:12.4]}
44... Bxg7 {[%clk 0:00:35.2]} 45. Rxg7 {[%clk 0:00:13.3]} 45... Rc4 {[%clk
0:00:34.7]} 46. h5 {[%clk 0:00:12.3]} 46... Rxb4 {[%clk 0:00:34]} 47. h6 {[%clk
0:00:12.5]} 47... Rb2+ {[%clk 0:00:33.8]} 48. Ke3 {[%clk 0:00:11.9]} 48... Rh2
{[%clk 0:00:33.9]} 49. h7 {[%clk 0:00:10.8]} 49... b4 {[%clk 0:00:33.9]} 50. g4
{[%clk 0:00:09.9]} 50... b3 {[%clk 0:00:33.3]} 51. Rg5+ {[%clk 0:00:10]} 51...
Kc4 {[%clk 0:00:32.4]} 52. Rh5 {[%clk 0:00:09.6]} 52... Rxh5 {[%clk 0:00:27.2]}
53. gxh5 {[%clk 0:00:09.5]} 53... b2 {[%clk 0:00:27.6]} 54. h8=Q {[%clk
0:00:10.4]} 54... b1=Q {[%clk 0:00:27.9]} 55. Qc8+ {[%clk 0:00:07.6]} 55... Kd5
{[%clk 0:00:27.2]} 56. Qf5+ {[%clk 0:00:07.1]} 56... Kc4 {[%clk 0:00:22.8]} 57.
Qxe4+ {[%clk 0:00:05.1]} 57... Qxe4+ {[%clk 0:00:23.2]} 58. Kxe4 {[%clk
0:00:06]} 58... d5+ {[%clk 0:00:21.5]} 59. Ke5 {[%clk 0:00:03.7]} 59... d4
{[%clk 0:00:20.8]} 60. h6 {[%clk 0:00:04.6]} 60... d3 {[%clk 0:00:21.2]} 61. h7
{[%clk 0:00:05.5]} 61... d2 {[%clk 0:00:21.6]} 62. h8=Q {[%clk 0:00:06.4]} 62...
d1=Q {[%clk 0:00:22]} 63. Qc8+ {[%clk 0:00:05.7]} 63... Kb5 {[%clk 0:00:21.9]}
64. Qc7 {[%clk 0:00:03.7]} 64... Qe2+ {[%clk 0:00:20.3]} 65. Kf6 {[%clk
0:00:03.5]} 65... Qf3+ {[%clk 0:00:20.1]} 66. Kg7 {[%clk 0:00:03.3]} 66... Qg4+
{[%clk 0:00:20.1]} 67. Kh8 {[%clk 0:00:03.4]} 67... Qh5+ {[%clk 0:00:19.7]} 68.
Kg7 {[%clk 0:00:03.1]} 68... Qg5+ {[%clk 0:00:20.2]} 69. Kh8 {[%clk 0:00:03.1]}
69... Qf6+ {[%clk 0:00:20.2]} 70. Kg8 {[%clk 0:00:03.2]} 70... Qc6 {[%clk
0:00:20.2]} 71. Qd8 {[%clk 0:00:02.3]} 71... Ka4 {[%clk 0:00:19.5]} 72. Kh8
{[%clk 0:00:01.4]} 72... Qc4 {[%clk 0:00:19.4]} 73. Qb6 {[%clk 0:00:01.5]} 73...
Qb5 {[%clk 0:00:19.1]} 74. Kg7 {[%clk 0:00:01.1]} 74... Qxa5 {[%clk 0:00:18.7]}
0-1

[Event "*** SCC Grand Prix: Titled Tuesday Blitz"]
[Site "Chess.com"]
[Date "2020.07.07"]
[Round "4"]
[White "Barmen_EV"]
[Black "MacDaddyMac"]
[Result "1-0"]
[WhiteElo "2464"]
[BlackElo "2306"]
[TimeControl "180+1"]
[EndTime "10:41:28 PDT"]
[Termination "Barmen_EV won by checkmate"]

1. d4 {[%clk 0:03:00.9]} 1... e6 {[%clk 0:03:00.2]} 2. c4 {[%clk 0:03:01.8]}
2... d5 {[%clk 0:03:01.1]} 3. Nc3 {[%clk 0:03:01.9]} 3... Nf6 {[%clk 0:03:01.1]}
4. cxd5 {[%clk 0:03:02.2]} 4... exd5 {[%clk 0:03:01.2]} 5. Bg5 {[%clk
0:03:02.2]} 5... Be7 {[%clk 0:03:01.2]} 6. e3 {[%clk 0:03:02.5]} 6... O-O {[%clk
0:03:01.1]} 7. Bd3 {[%clk 0:03:02.8]} 7... h6 {[%clk 0:03:00.2]} 8. Bh4 {[%clk
0:03:02.8]} 8... c6 {[%clk 0:02:56.5]} 9. Qc2 {[%clk 0:03:02.3]} 9... Bg4 {[%clk
0:02:55.6]} 10. f3 {[%clk 0:03:01.3]} 10... Be6 {[%clk 0:02:55.3]} 11. Nge2
{[%clk 0:03:00.3]} 11... Nbd7 {[%clk 0:02:53.5]} 12. O-O {[%clk 0:03:00.1]}
12... Rc8 {[%clk 0:02:45.1]} 13. Rad1 {[%clk 0:02:59.1]} 13... Kh8 {[%clk
0:02:38.4]} 14. Bf2 {[%clk 0:02:56.7]} 14... Qb6 {[%clk 0:02:33.5]} 15. h3
{[%clk 0:02:56.1]} 15... Rfd8 {[%clk 0:02:18.5]} 16. e4 {[%clk 0:02:54.7]} 16...
dxe4 {[%clk 0:02:18.2]} 17. fxe4 {[%clk 0:02:55.6]} 17... Qc7 {[%clk 0:02:13.9]}
18. Bg3 {[%clk 0:02:49.7]} 18... Qa5 {[%clk 0:02:13.9]} 19. Nf4 {[%clk
0:02:40.2]} 19... Nh5 {[%clk 0:01:52.6]} 20. Nxe6 {[%clk 0:02:28]} 20... fxe6
{[%clk 0:01:51.9]} 21. Bh2 {[%clk 0:02:22.8]} 21... Rf8 {[%clk 0:01:46.1]} 22.
e5 {[%clk 0:02:18.5]} 22... Qb6 {[%clk 0:01:32.7]} 23. Bg6 {[%clk 0:02:11.1]}
23... Rxf1+ {[%clk 0:01:31.6]} 24. Kxf1 {[%clk 0:02:10.3]} 24... Rf8+ {[%clk
0:01:25.3]} 25. Kg1 {[%clk 0:02:10.1]} 25... Nf4 {[%clk 0:01:25.3]} 26. Kh1
{[%clk 0:01:50.6]} 26... c5 {[%clk 0:00:55.5]} 27. Na4 {[%clk 0:01:24.6]} 27...
Qa5 {[%clk 0:00:52.6]} 28. Nxc5 {[%clk 0:01:13.5]} 28... Nxc5 {[%clk 0:00:48.5]}
29. dxc5 {[%clk 0:01:14.4]} 29... Bxc5 {[%clk 0:00:48.8]} 30. a3 {[%clk
0:01:05.8]} 30... Qb6 {[%clk 0:00:27.3]} 31. Be4 {[%clk 0:00:59.9]} 31... Bd4
{[%clk 0:00:18.9]} 32. Qc4 {[%clk 0:00:49.3]} 32... Be3 {[%clk 0:00:16.1]} 33.
Bb1 {[%clk 0:00:47.4]} 33... Qc5 {[%clk 0:00:09.5]} 34. Qe4 {[%clk 0:00:45.7]}
34... Kg8 {[%clk 0:00:03.2]} 35. Rf1 {[%clk 0:00:39.6]} 35... Rf5 {[%clk
0:00:02.4]} 36. Qxb7 {[%clk 0:00:35.3]} 36... Qxe5 {[%clk 0:00:01.8]} 37. Bxf5
{[%clk 0:00:33.6]} 37... Qxf5 {[%clk 0:00:02.7]} 38. Qc8+ {[%clk 0:00:18.9]}
38... Kh7 {[%clk 0:00:03]} 39. Qc3 {[%clk 0:00:16]} 39... Qe4 {[%clk 0:00:02.8]}
40. Bxf4 {[%clk 0:00:15]} 40... Bxf4 {[%clk 0:00:03.7]} 41. Qf3 {[%clk
0:00:13.5]} 41... Qxf3 {[%clk 0:00:04.2]} 42. Rxf3 {[%clk 0:00:14.4]} 42... Be5
{[%clk 0:00:05.1]} 43. b4 {[%clk 0:00:14]} 43... Bb2 {[%clk 0:00:05.1]} 44. a4
{[%clk 0:00:12.8]} 44... e5 {[%clk 0:00:05.5]} 45. b5 {[%clk 0:00:12.5]} 45...
Bd4 {[%clk 0:00:05.5]} 46. Rf7 {[%clk 0:00:12.3]} 46... Kg6 {[%clk 0:00:05.6]}
47. Rd7 {[%clk 0:00:12.2]} 47... Bb6 {[%clk 0:00:05.1]} 48. g4 {[%clk
0:00:11.4]} 48... e4 {[%clk 0:00:05.1]} 49. Kg2 {[%clk 0:00:12.3]} 49... e3
{[%clk 0:00:05.5]} 50. Kf3 {[%clk 0:00:12.5]} 50... Kf6 {[%clk 0:00:05.1]} 51.
a5 {[%clk 0:00:12]} 51... Bxa5 {[%clk 0:00:05.5]} 52. Rxa7 {[%clk 0:00:11.9]}
52... Bb4 {[%clk 0:00:04.2]} 53. Ra6+ {[%clk 0:00:10.4]} 53... Ke7 {[%clk
0:00:03.9]} 54. Kxe3 {[%clk 0:00:11.3]} 54... Bc5+ {[%clk 0:00:04.1]} 55. Ke4
{[%clk 0:00:11.8]} 55... Kd8 {[%clk 0:00:04.1]} 56. Kf5 {[%clk 0:00:12.7]} 56...
Kc7 {[%clk 0:00:04.3]} 57. Kg6 {[%clk 0:00:13.6]} 57... Bd4 {[%clk 0:00:04.8]}
58. Rc6+ {[%clk 0:00:13.8]} 58... Kb7 {[%clk 0:00:05]} 59. h4 {[%clk 0:00:14.7]}
59... Bb2 {[%clk 0:00:04.5]} 60. h5 {[%clk 0:00:15.6]} 60... Ba1 {[%clk
0:00:04.4]} 61. Re6 {[%clk 0:00:15.3]} 61... Bb2 {[%clk 0:00:04.1]} 62. Re7+
{[%clk 0:00:15.2]} 62... Kb6 {[%clk 0:00:04.7]} 63. Rxg7 {[%clk 0:00:16.1]}
63... Bxg7 {[%clk 0:00:04.4]} 64. Kxg7 {[%clk 0:00:15.9]} 64... Kxb5 {[%clk
0:00:05.3]} 65. Kxh6 {[%clk 0:00:16.8]} 65... Kc6 {[%clk 0:00:06.2]} 66. g5
{[%clk 0:00:17.5]} 66... Kd5 {[%clk 0:00:07.1]} 67. g6 {[%clk 0:00:18.4]} 67...
Ke6 {[%clk 0:00:07.7]} 68. g7 {[%clk 0:00:19.3]} 68... Kf7 {[%clk 0:00:06.8]}
69. Kh7 {[%clk 0:00:19.3]} 69... Kf6 {[%clk 0:00:07.7]} 70. h6 {[%clk
0:00:20.2]} 70... Ke7 {[%clk 0:00:08.3]} 71. Kg8 {[%clk 0:00:19.3]} 71... Kf6
{[%clk 0:00:08.4]} 72. h7 {[%clk 0:00:20.2]} 72... Kg6 {[%clk 0:00:08.3]} 73.
h8=Q {[%clk 0:00:21.1]} 73... Kf6 {[%clk 0:00:09.2]} 74. Qh6+ {[%clk 0:00:20.8]}
74... Ke7 {[%clk 0:00:09.3]} 75. Kh7 {[%clk 0:00:20]} 75... Kf7 {[%clk
0:00:09.4]} 76. g8=Q+ {[%clk 0:00:19.7]} 76... Ke7 {[%clk 0:00:10.3]} 77. Qhe6#
{[%clk 0:00:20.3]} 1-0

[Event "*** SCC Grand Prix: Titled Tuesday Blitz"]
[Site "Chess.com"]
[Date "2020.07.07"]
[Round "4"]
[White "Andrei_Belozerov"]
[Black "ArjunErigaisi2003"]
[Result "0-1"]
[WhiteElo "2572"]
[BlackElo "3014"]
[TimeControl "180+1"]
[EndTime "10:41:29 PDT"]
[Termination "ArjunErigaisi2003 won by checkmate"]

1. e4 {[%clk 0:03:00.9]} 1... e5 {[%clk 0:02:59]} 2. Nf3 {[%clk 0:03:00.3]} 2...
Nc6 {[%clk 0:02:58.9]} 3. Bb5 {[%clk 0:03:00.1]} 3... a6 {[%clk 0:02:58.8]} 4.
Ba4 {[%clk 0:03:00.3]} 4... Nf6 {[%clk 0:02:59]} 5. O-O {[%clk 0:03:00.2]} 5...
Bc5 {[%clk 0:02:58.9]} 6. d3 {[%clk 0:02:50.2]} 6... b5 {[%clk 0:02:53]} 7. Bb3
{[%clk 0:02:49.3]} 7... d6 {[%clk 0:02:53.5]} 8. Be3 {[%clk 0:02:48.5]} 8...
Bxe3 {[%clk 0:02:43.4]} 9. fxe3 {[%clk 0:02:47.7]} 9... Na5 {[%clk 0:02:43.9]}
10. Nc3 {[%clk 0:02:39.5]} 10... O-O {[%clk 0:02:41.3]} 11. Qe1 {[%clk
0:02:38.1]} 11... Nxb3 {[%clk 0:02:32.7]} 12. axb3 {[%clk 0:02:37.2]} 12... Be6
{[%clk 0:02:30.4]} 13. h3 {[%clk 0:02:05.5]} 13... Nd7 {[%clk 0:02:20.5]} 14.
Qg3 {[%clk 0:01:56.7]} 14... f6 {[%clk 0:02:15.3]} 15. Nh4 {[%clk 0:01:51.4]}
15... Kh8 {[%clk 0:02:11.7]} 16. Nf5 {[%clk 0:01:37.5]} 16... g6 {[%clk
0:02:08.1]} 17. Nh6 {[%clk 0:01:31.8]} 17... Qe7 {[%clk 0:01:52.6]} 18. Ng4
{[%clk 0:01:26.5]} 18... c6 {[%clk 0:01:47.2]} 19. Rf2 {[%clk 0:01:18.8]} 19...
a5 {[%clk 0:01:32.5]} 20. Raf1 {[%clk 0:01:13.9]} 20... h5 {[%clk 0:01:32.4]}
21. Nh2 {[%clk 0:01:07]} 21... g5 {[%clk 0:01:26.2]} 22. Qf3 {[%clk 0:00:56.8]}
22... Qh7 {[%clk 0:01:16.5]} 23. Ne2 {[%clk 0:00:47.5]} 23... h4 {[%clk
0:01:08]} 24. Ng4 {[%clk 0:00:43.6]} 24... d5 {[%clk 0:00:55.4]} 25. Nc3 {[%clk
0:00:41.1]} 25... b4 {[%clk 0:00:52.7]} 26. exd5 {[%clk 0:00:19.2]} 26... Bxg4
{[%clk 0:00:49.8]} 27. Qxg4 {[%clk 0:00:19.3]} 27... bxc3 {[%clk 0:00:47.9]} 28.
dxc6 {[%clk 0:00:19.5]} 28... Nc5 {[%clk 0:00:30.3]} 29. bxc3 {[%clk 0:00:19]}
29... Qe7 {[%clk 0:00:23.7]} 30. b4 {[%clk 0:00:14.5]} 30... axb4 {[%clk
0:00:22.2]} 31. cxb4 {[%clk 0:00:14.8]} 31... Ne6 {[%clk 0:00:20.2]} 32. b5
{[%clk 0:00:15.1]} 32... Kg7 {[%clk 0:00:18.9]} 33. Qc4 {[%clk 0:00:14.4]} 33...
Rab8 {[%clk 0:00:15.6]} 34. Ra1 {[%clk 0:00:13]} 34... Rf7 {[%clk 0:00:14.1]}
35. Ra6 {[%clk 0:00:12.1]} 35... Nc5 {[%clk 0:00:10.1]} 36. Ra5 {[%clk
0:00:10.8]} 36... Ne6 {[%clk 0:00:10.4]} 37. Rf1 {[%clk 0:00:10.4]} 37... Qd6
{[%clk 0:00:08.6]} 38. Rfa1 {[%clk 0:00:09.7]} 38... Nc7 {[%clk 0:00:08.7]} 39.
Ra7 {[%clk 0:00:07.7]} 39... Re7 {[%clk 0:00:08.8]} 40. Rb7 {[%clk 0:00:06.9]}
40... Rbe8 {[%clk 0:00:07.7]} 41. Raa7 {[%clk 0:00:06.3]} 41... e4 {[%clk
0:00:08.3]} 42. d4 {[%clk 0:00:05.7]} 42... Qg3 {[%clk 0:00:08.2]} 43. Qe2
{[%clk 0:00:05.6]} 43... Nd5 {[%clk 0:00:05.3]} 44. Rxe7+ {[%clk 0:00:05]} 44...
Rxe7 {[%clk 0:00:05.2]} 45. Rxe7+ {[%clk 0:00:03.6]} 45... Nxe7 {[%clk
0:00:06.1]} 46. c4 {[%clk 0:00:01.3]} 46... Nf5 {[%clk 0:00:06.2]} 47. d5 {[%clk
0:00:01.9]} 47... Nxe3 {[%clk 0:00:05.6]} 48. b6 {[%clk 0:00:02.2]} 48... Nf5
{[%clk 0:00:04.2]} 49. c7 {[%clk 0:00:01.9]} 49... Ne7 {[%clk 0:00:03.6]} 50. c5
{[%clk 0:00:02.1]} 50... Qe5 {[%clk 0:00:02.5]} 51. d6 {[%clk 0:00:02.2]} 51...
Qd4+ {[%clk 0:00:02.9]} 52. Kh2 {[%clk 0:00:02.1]} 52... Qe5+ {[%clk 0:00:02.9]}
53. Kh1 {[%clk 0:00:02.3]} 53... Qa1+ {[%clk 0:00:03.2]} 54. Kh2 {[%clk
0:00:02.5]} 54... Qe5+ {[%clk 0:00:03.8]} 55. Kg1 {[%clk 0:00:03]} 55... Qa1+
{[%clk 0:00:04.2]} 56. Qf1 {[%clk 0:00:03]} 56... Qd4+ {[%clk 0:00:04.8]} 57.
Qf2 {[%clk 0:00:03.2]} 57... e3 {[%clk 0:00:04.3]} 58. Qe2 {[%clk 0:00:03.2]}
58... Qa1+ {[%clk 0:00:04.8]} 59. Kh2 {[%clk 0:00:03.4]} 59... Qe5+ {[%clk
0:00:05.4]} 60. Kh1 {[%clk 0:00:03.7]} 60... Nd5 {[%clk 0:00:05.8]} 61. d7
{[%clk 0:00:03.2]} 61... Nf4 {[%clk 0:00:05.7]} 62. d8=Q {[%clk 0:00:02.2]}
62... Nxe2 {[%clk 0:00:06]} 63. c8=Q {[%clk 0:00:01.8]} 63... Qa1+ {[%clk
0:00:06]} 64. Kh2 {[%clk 0:00:01.6]} 64... Qg1# {[%clk 0:00:06.9]} 0-1

[Event "*** SCC Grand Prix: Titled Tuesday Blitz"]
[Site "Chess.com"]
[Date "2020.07.07"]
[Round "4"]
[White "NikolaGry"]
[Black "Karacsonyi_Gellert"]
[Result "1/2-1/2"]
[WhiteElo "2624"]
[BlackElo "2474"]
[TimeControl "180+1"]
[EndTime "10:41:29 PDT"]
[Termination "Game drawn - insufficient material"]

1. b3 {[%clk 0:03:00.9]} 1... Nf6 {[%clk 0:02:59.6]} 2. Bb2 {[%clk 0:03:01]}
2... d5 {[%clk 0:03:00]} 3. Nf3 {[%clk 0:03:00.2]} 3... c5 {[%clk 0:03:00.3]} 4.
e3 {[%clk 0:03:00.5]} 4... Nc6 {[%clk 0:03:00.4]} 5. Bb5 {[%clk 0:03:00.4]} 5...
Bg4 {[%clk 0:03:00.6]} 6. h3 {[%clk 0:02:58.4]} 6... Bxf3 {[%clk 0:03:00.2]} 7.
Bxc6+ {[%clk 0:02:57.5]} 7... bxc6 {[%clk 0:02:59.9]} 8. Qxf3 {[%clk 0:02:57.5]}
8... e6 {[%clk 0:03:00.4]} 9. O-O {[%clk 0:02:55.2]} 9... Be7 {[%clk 0:03:00.9]}
10. d3 {[%clk 0:02:54.8]} 10... O-O {[%clk 0:03:01.4]} 11. Rd1 {[%clk
0:02:53.8]} 11... Nd7 {[%clk 0:03:01.6]} 12. c4 {[%clk 0:02:49.8]} 12... Bf6
{[%clk 0:03:01.9]} 13. Nc3 {[%clk 0:02:49.7]} 13... Qe7 {[%clk 0:02:58.4]} 14.
Rac1 {[%clk 0:02:47.7]} 14... Rfd8 {[%clk 0:02:52.2]} 15. Na4 {[%clk 0:02:32.3]}
15... Bxb2 {[%clk 0:02:47.7]} 16. Nxb2 {[%clk 0:02:31.7]} 16... Ne5 {[%clk
0:02:42.7]} 17. Qe2 {[%clk 0:02:29]} 17... Ng6 {[%clk 0:02:21.6]} 18. d4 {[%clk
0:02:00.4]} 18... cxd4 {[%clk 0:02:18.7]} 19. Rxd4 {[%clk 0:01:56.1]} 19... e5
{[%clk 0:01:54.9]} 20. Rdd1 {[%clk 0:01:50.2]} 20... Qg5 {[%clk 0:01:53.5]} 21.
cxd5 {[%clk 0:01:43.2]} 21... cxd5 {[%clk 0:01:54.4]} 22. Qg4 {[%clk 0:01:41.3]}
22... Qe7 {[%clk 0:01:50]} 23. Na4 {[%clk 0:01:36.3]} 23... Qe6 {[%clk
0:01:35.7]} 24. Nc5 {[%clk 0:01:14.7]} 24... Qe7 {[%clk 0:01:30.5]} 25. Na4
{[%clk 0:01:10]} 25... Qe6 {[%clk 0:01:28.8]} 26. Rc7 {[%clk 0:01:05.6]} 26...
f5 {[%clk 0:01:26.3]} 27. Qh5 {[%clk 0:00:59.7]} 27... f4 {[%clk 0:01:15.5]} 28.
Qg4 {[%clk 0:00:51.9]} 28... Qxg4 {[%clk 0:01:05.1]} 29. hxg4 {[%clk 0:00:51.1]}
29... fxe3 {[%clk 0:01:05.6]} 30. fxe3 {[%clk 0:00:50.9]} 30... d4 {[%clk
0:01:06.3]} 31. exd4 {[%clk 0:00:40.9]} 31... exd4 {[%clk 0:01:07.2]} 32. Nc5
{[%clk 0:00:34.7]} 32... Rd6 {[%clk 0:00:59.9]} 33. Ne4 {[%clk 0:00:30.4]} 33...
Rd5 {[%clk 0:00:54]} 34. Nc3 {[%clk 0:00:27.6]} 34... Rdd8 {[%clk 0:00:48.8]}
35. Nb5 {[%clk 0:00:27.1]} 35... d3 {[%clk 0:00:49]} 36. Rxa7 {[%clk 0:00:24.3]}
36... Rxa7 {[%clk 0:00:44.9]} 37. Nxa7 {[%clk 0:00:24.4]} 37... Ne5 {[%clk
0:00:45.8]} 38. Kf2 {[%clk 0:00:19.2]} 38... Nxg4+ {[%clk 0:00:43.2]} 39. Kf3
{[%clk 0:00:19]} 39... h5 {[%clk 0:00:40.1]} 40. Nc6 {[%clk 0:00:16.3]} 40...
Rd6 {[%clk 0:00:37.3]} 41. Nb4 {[%clk 0:00:15.4]} 41... Rf6+ {[%clk 0:00:20.2]}
42. Kg3 {[%clk 0:00:14]} 42... Ne3 {[%clk 0:00:14.7]} 43. Rxd3 {[%clk
0:00:10.4]} 43... Nf1+ {[%clk 0:00:15.2]} 44. Kh3 {[%clk 0:00:10]} 44... g5
{[%clk 0:00:11]} 45. Nd5 {[%clk 0:00:10]} 45... Rf7 {[%clk 0:00:08.5]} 46. a4
{[%clk 0:00:08.5]} 46... Kg7 {[%clk 0:00:05.7]} 47. a5 {[%clk 0:00:08]} 47...
Kh6 {[%clk 0:00:04.6]} 48. b4 {[%clk 0:00:06.6]} 48... h4 {[%clk 0:00:05.1]} 49.
Ne3 {[%clk 0:00:05.5]} 49... Ng3 {[%clk 0:00:02.3]} 50. Ng4+ {[%clk 0:00:04.5]}
50... Kg7 {[%clk 0:00:02.6]} 51. Rd1 {[%clk 0:00:04.4]} 51... Rb7 {[%clk
0:00:01.7]} 52. a6 {[%clk 0:00:03.7]} 52... Rxb4 {[%clk 0:00:01.9]} 53. Ra1
{[%clk 0:00:03.6]} 53... Rb8 {[%clk 0:00:02.3]} 54. a7 {[%clk 0:00:03.3]} 54...
Ra8 {[%clk 0:00:03.2]} 55. Ne5 {[%clk 0:00:03.5]} 55... Kf6 {[%clk 0:00:02.9]}
56. Nc6 {[%clk 0:00:03.6]} 56... Ne4 {[%clk 0:00:02.9]} 57. Rb1 {[%clk
0:00:03.3]} 57... Nd6 {[%clk 0:00:03.2]} 58. Rb8 {[%clk 0:00:03.2]} 58... g4+
{[%clk 0:00:03.7]} 59. Kxh4 {[%clk 0:00:02.9]} 59... Rxa7 {[%clk 0:00:04.2]} 60.
Nxa7 {[%clk 0:00:02.7]} 60... Nf5+ {[%clk 0:00:05.1]} 61. Kxg4 {[%clk
0:00:02.2]} 61... Ne3+ {[%clk 0:00:06]} 62. Kf3 {[%clk 0:00:02.7]} 62... Nc4
{[%clk 0:00:06.9]} 63. Rc8 {[%clk 0:00:02.5]} 63... Ne5+ {[%clk 0:00:07.8]} 64.
Ke4 {[%clk 0:00:02.1]} 64... Nf7 {[%clk 0:00:08.7]} 65. Rc6+ {[%clk 0:00:02.7]}
65... Kg5 {[%clk 0:00:08.8]} 66. Rc7 {[%clk 0:00:03.1]} 66... Nd6+ {[%clk
0:00:08.8]} 67. Kd5 {[%clk 0:00:02.7]} 67... Nf5 {[%clk 0:00:09.7]} 68. Rc5
{[%clk 0:00:03.2]} 68... Ne3+ {[%clk 0:00:09.2]} 69. Kc6+ {[%clk 0:00:04.1]}
69... Kf4 {[%clk 0:00:10]} 70. Nb5 {[%clk 0:00:05]} 70... Nxg2 {[%clk
0:00:10.3]} 71. Kb6 {[%clk 0:00:05.9]} 71... Ne3 {[%clk 0:00:10.7]} 72. Rc3
{[%clk 0:00:06.8]} 72... Nd5+ {[%clk 0:00:10.3]} 73. Kb7 {[%clk 0:00:07.7]}
73... Nxc3 {[%clk 0:00:11]} 1/2-1/2